{"text_format":"3","workbook":"xlsx","n_sheets":3,"sheets":["Sākums","Mēneša studiju budžets","diagrammas_aprēķini"],"not_rendered":{"charts":4,"defined_names":19},"read":"whole","date_system":"1900"}

{"sheet":"Sākums","index":0,"n_rows":7,"n_cols":2,"rows_kept":7}
[null,"PAR ŠO VEIDNI"]
[null,"Izmantojiet mēneša studiju budžets darblapu, lai sekotu līdzi ienākumiem, izdevumiem un naudas plūsmai."]
[null,"Ievadiet mēneša naudas plūsma, lai aprēķinātu kopējos naudas plūsma."]
[null,"Naudas plūsma tiek aprēķināta automātiski, un naudas plūsmas diagramma tiek atjaunināta automātiski."]
[null,"Atlasiet slīdni, lai redzētu ienākumu, izdevumu un naudas plūsmas diagrammas par mēnesi un gadu."]
[null,"Piezīme. "]
[null,"Papildu norādījumi ir sniegti kolonnā A darblapā. Šis teksts ir paslēpts ar nolūku. Lai tekstu noņemtu, atlasiet kolonnu A, pēc tam atlasiet DZĒST. Lai parādītu slēpto tekstu, atlasiet kolonnu A, pēc tam nomainiet fonta krāsu."]

{"sheet":"Mēneša studiju budžets","index":1,"n_rows":72,"n_cols":16,"rows_kept":72,"merged":[[5,1,14,3],[5,4,14,11],[5,12,13,15],[15,1,19,15],[20,1,21,15]]}
["Šajā darbgrāmatā izveidojiet mēneša studiju budžets. Šīs darblapas nosaukums ir šūnā pa labi un šūnā B1. Šīs kolonnas šūnās ir noderīgi norādījumi par to, kā lietot šo darblapu. Nākamais norādījums ir šūnā A4.","Mēneša studiju budžets"]
[]
[]
["Ienākumu etiķete ir šūnā pa labi, izdevumu etiķete ir šūnā E4, bet naudas plūsmas etiķete ir šūnā M4.",{"$f":"diagrammas_aprēķini!$D$6","v":"january ieņēmumi:"},null,null,{"$f":"diagrammas_aprēķini!$D$7","v":"january izdevumi:"},{"$nulls":7},{"$f":"diagrammas_aprēķini!$D$8","v":"january naudas plūsma:"}]
["Ienākumi tiek automātiski atjaunināti šūnā pa labi, izdevumi tiek atjaunināti šūnā E5 un naudas plūsma tiek atjaunināta šūnā M5.",{"$f":"\" \"&diagrammas_aprēķini!$F$6","v":" 12 25 EUR"},null,null,{"$f":"\" \"&diagrammas_aprēķini!$F$7","v":" 10 56 EUR"},{"$nulls":7},{"$f":"\" \"&diagrammas_aprēķini!$F$8","v":" 1 69 EUR"}]
["Gredzena diagramma, kurā redzams ienākumu kopsavilkums, šūnā pa labi, izdevumu kopsavilkums šūnā E6 un joslu diagramma, kurā redzama pozitīvā un negatīvā naudas plūsma, šūnā M6 tiek atjauninātas automātiski. Nākamais norādījums ir šūnā A17.","Šajā šūnā ir gredzena diagramma atlasītajam mēnesim vai gadam, kas rāda ienākumu kopsavilkumu.",null,null,"Šajā šūnā ir gredzena diagramma atlasītajam mēnesim vai gadam, kas rāda izdevumu kopsavilkumu.",{"$nulls":7},"Šajā šūnā ir joslu diagramma atlasītajam mēnesim vai gadam rāda pozitīvo un negatīvo naudas plūsmu."]
{"$rows_empty":9}
[null,"Šajā šūnā ir līniju diagramma atlasītajam mēnesim vai gadam, kas rāda naudas plūsmu."]
["Šūnā pa labi ir naudas plūsmas diagramma. Nākamais norādījums ir šūnā A21."]
[]
[]
[]
["Atlasiet slīdni pa labi, lai iegūtu mēneša vai gada ienākumus, izdevumus un naudas plūsmas datus un diagrammas. Nākamais norādījums ir šūnā A25.","Slīdnis ir šajā šūnā."]
[]
[]
[]
["Atlasiet mēnesi šūnā pa labi. Lai būtu pieejamas opcijas, nospiediet taustiņu kombināciju ALT+LEJUPVĒRSTĀ BULTIŅA un pēc tam — LEJUPVĒRSTO BULTIŅU un ENTER, lai veiktu atlasi.","JAN"]
["Atlasītais periods tiek atjaunināts automātiski šūnā P26.",{"$nulls":14},{"$f":"AtlasītaisPeriods","v":"JAN "}]
["Šajā rindā ir etiķetes, ikmēneša naudas plūsma pēc izdevumiem etiķete ir šūnā pa labi, mēneši ir no šūnas C27 līdz šūnai N27, gads ir šūnā O27, un procentuālais pieaugums ir šūnā P27.","Ikmēneša naudas plūsma pēc izdevumiem",{"$f":"PirmaisMēnesis","v":"JAN "},{"$f":"NākamaisMēnesis","v":"FEB "},"MAR ","APR ","MAY ","JUN ","JUL ","AUG ","SEP ","OCT ","NOV ","DEC ","GADS  ","% PIEAUGUMS "]
["Šūnā pa labi ir naudas plūsmas etiķete. Naudas plūsma par katru mēnesi tiek aprēķināta automātiski šūnās no C28 līdz N28, gada summa tiek aprēķināta šūnā O28, bet procentuālais pieaugums šūnā P28. Sīkdiagramma tiek automātiski atjaunināta šūnā Q28.","Naudas plūsma",{"$f":"C37-C72","v":169},69,192,199,204,{"v":-771,"d":"-771 "},124,154,{"v":-721,"d":"-721 "},109,34,{"v":-61,"d":"-61 "},{"$f":"SUM(C28:N28)","v":{"v":-299,"d":"-299 "}},{"$f":"INDEX($C28:$O28,,AtlasītāPeriodaKolonna)/INDEX($C$37:$O$37,,AtlasītāPeriodaKolonna)","v":{"v":0.13795918367346938,"d":"13.8%"}}]
["Šūnā pa labi ir kumulatīvās naudas plūsmas etiķete. Kumulatīvā naudas plūsma par katru mēnesi tiek aprēķināta automātiski šūnās no C29 līdz N29, gada summa tiek aprēķināta šūnā O29, bet procentuālais pieaugums šūnā P29. Sīkdiagramma tiek automātiski atjaunināta šūnā Q29. Nākamais norādījums ir šūnā A31.","Kumulatīvā naudas plūsma",{"$f":"SUM($C$28:C$28)","v":169},{"$f":"SUM($C$28:D$28)","v":238},{"$f":"SUM($C$28:E$28)","v":430},{"$f":"SUM($C$28:F$28)","v":629},{"$f":"SUM($C$28:G$28)","v":833},{"$f":"SUM($C$28:H$28)","v":62},{"$f":"SUM($C$28:I$28)","v":186},{"$f":"SUM($C$28:J$28)","v":340},{"$f":"SUM($C$28:K$28)","v":{"v":-381,"d":"-381 "}},{"$f":"SUM($C$28:L$28)","v":{"v":-272,"d":"-272 "}},{"$f":"SUM($C$28:M$28)","v":{"v":-238,"d":"-238 "}},{"$f":"SUM($C$28:N$28)","v":{"v":-299,"d":"-299 "}}]
[]
["Ikmēneša ienākumi etiķete ir šūnā pa labi, mēneši ir šūnās no C31 līdz N31, gads ir šūnā O31, un procentuālā pieauguma etiķete ir šūnā P31. Ievadiet ikmēneša ienākumu vienumus šūnās no B32 līdz B36 un mēneša apjomus šūnās no C32 līdz N36. Gada ieņēmumi tiek automātiski aprēķināti šūnās no O32 līdz O36, un procentuālais pieaugums tiek aprēķināts šūnās no P32 līdz P36. Nākamais norādījums ir šūnā A37.","IKMĒNEŠA IENĀKUMI",{"$f":"PirmaisMēnesis","v":"JAN "},{"$f":"NākamaisMēnesis","v":"FEB "},"MAR ","APR ","MAY ","JUN ","JUL ","AUG ","SEP ","OCT ","NOV ","DEC ","GADS  ","% PIEAUGUMS "]
[null,"Jums izmaksātā finansiālā palīdzība (granti, stipendijas, aizdevumi)",0,0,750,750,750,750,750,750,750,750,750,750,{"$f":"SUM(C32:N32)","v":{"v":7500,"d":"7,500"}},{"$f":"INDEX($C32:$O32,,AtlasītāPeriodaKolonna)/INDEX($C$37:$O$37,,AtlasītāPeriodaKolonna)","v":{"v":0,"d":"0.0%"}}]
[null,"Darba samaksa pēc nodokļiem",450,450,450,450,450,450,450,450,550,350,350,350,{"v":5200,"d":"5,200"},{"$f":"INDEX($C33:$O33,,AtlasītāPeriodaKolonna)/INDEX($C$37:$O$37,,AtlasītāPeriodaKolonna)","v":{"v":0.3673469387755102,"d":"36.7%"}}]
[null,"Ģimenes sniegtā palīdzība",200,200,{"v":1000,"d":"1,000"},350,350,350,350,350,350,350,350,350,{"v":4550,"d":"4,550"},{"$f":"INDEX($C34:$O34,,AtlasītāPeriodaKolonna)/INDEX($C$37:$O$37,,AtlasītāPeriodaKolonna)","v":{"v":0.16326530612244897,"d":"16.3%"}}]
[null,"Izņemtie iekrājumi",500,350,150,0,0,0,0,0,0,0,0,0,{"v":1000,"d":"1,000"},{"$f":"INDEX($C35:$O35,,AtlasītāPeriodaKolonna)/INDEX($C$37:$O$37,,AtlasītāPeriodaKolonna)","v":{"v":0.40816326530612246,"d":"40.8%"}}]
[null,"Cits (bērnu pabalsts, sociālais pabalsts, dāvinājumi u.c.)",75,75,75,75,75,75,75,75,75,75,75,75,900,{"$f":"INDEX($C36:$O36,,AtlasītāPeriodaKolonna)/INDEX($C$37:$O$37,,AtlasītāPeriodaKolonna)","v":{"v":0.061224489795918366,"d":"6.1%"}}]
["Etiķete Ienākumu kopsumma ir šūnā pa labi. Ienākumu kopsumma par katru mēnesi tiek aprēķināta automātiski šūnās no C37 līdz N37, gada ienākumi tiek aprēķināti šūnā O37, bet procentuālais pieaugums šūnā P37. Sīkdiagramma tiek automātiski atjaunināta šūnā Q37. Nākamais norādījums ir šūnā A39.","IENĀKUMU KOPSUMMA",{"$f":"SUM(C32:C36)","v":{"v":1225,"d":"1,225"}},{"v":1075,"d":"1,075"},{"v":2425,"d":"2,425"},{"v":1625,"d":"1,625"},{"v":1625,"d":"1,625"},{"v":1625,"d":"1,625"},{"v":1625,"d":"1,625"},{"v":1625,"d":"1,625"},{"v":1725,"d":"1,725"},{"v":1525,"d":"1,525"},{"v":1525,"d":"1,525"},{"v":1525,"d":"1,525"},{"v":19150,"d":"19,150"},{"$f":"INDEX($C37:$O37,,AtlasītāPeriodaKolonna)/INDEX($C$37:$O$37,,AtlasītāPeriodaKolonna)","v":{"v":1,"d":"100.0%"}}]
[]
["Ikmēneša izdevumi etiķete ir šūnā pa labi, mēneši ir šūnās no C39 līdz N39, gads ir šūnā O39, un procentuālā pieauguma etiķete ir šūnā P39.","IKMĒNEŠA IZDEVUMI",{"$f":"PirmaisMēnesis","v":"JAN "},{"$f":"NākamaisMēnesis","v":"FEB "},"MAR ","APR ","MAY ","JUN ","JUL ","AUG ","SEP ","OCT ","NOV ","DEC ","GADS  ","% PIEAUGUMS "]
["Ievadiet vai modificējiet izdevumu vienumu šūnā pa labi, un mēneša summas šūnās no C40 līdz N43. Gada ieņēmumi tiek automātiski aprēķināti šūnās no O40 līdz O43, un procentuālais pieaugums tiek aprēķināts šūnās no P40 līdz P43. Sīkdiagramma tiek automātiski atjaunināta šūnā Q40. Nākamais norādījums ir šūnā A45.","Izmitināšanas maksa",{"$f":"SUM(C41:C43)","v":565},565,565,565,565,565,565,565,565,565,565,565,{"$f":"SUM(C40:N40)","v":{"v":6780,"d":"6,780"}},{"$f":"INDEX($C40:$O40,,AtlasītāPeriodaKolonna)/INDEX($C$72:$O$72,,AtlasītāPeriodaKolonna)","v":{"v":0.5350378787878788,"d":"53.5%"}}]
[null,null,315,315,315,315,315,315,315,315,315,315,315,315,{"$f":"SUM(C41:N41)","v":{"v":3780,"d":"3,780"}},{"$f":"INDEX($C41:$O41,,AtlasītāPeriodaKolonna)/INDEX($C$72:$O$72,,AtlasītāPeriodaKolonna)","v":{"v":0.29829545454545453,"d":"29.8%"}}]
[null,null,200,200,200,200,200,200,200,200,200,200,200,200,{"$f":"SUM(C42:N42)","v":{"v":2400,"d":"2,400"}},{"$f":"INDEX($C42:$O42,,AtlasītāPeriodaKolonna)/INDEX($C$72:$O$72,,AtlasītāPeriodaKolonna)","v":{"v":0.1893939393939394,"d":"18.9%"}}]
[null,null,50,50,50,50,50,50,50,50,50,50,50,50,{"$f":"SUM(C43:N43)","v":600},{"$f":"INDEX($C43:$O43,,AtlasītāPeriodaKolonna)/INDEX($C$72:$O$72,,AtlasītāPeriodaKolonna)","v":{"v":0.04734848484848485,"d":"4.7%"}}]
[]
["Ievadiet vai modificējiet izdevumu vienumu šūnā pa labi, un mēneša summas šūnās no C45 līdz N47. Gada ieņēmumi tiek automātiski aprēķināti šūnās no O45 līdz O47, un procentuālais pieaugums tiek aprēķināts šūnās no P45 līdz P47. Sīkdiagramma tiek automātiski atjaunināta šūnā Q45. Nākamais norādījums ir šūnā A49.","Mācību maksa",{"$f":"SUM(C46:C47)","v":0},0,750,0,0,650,0,0,650,0,0,0,{"$f":"SUM(C45:N45)","v":{"v":2050,"d":"2,050"}},{"$f":"INDEX($C45:$O45,,AtlasītāPeriodaKolonna)/INDEX($C$72:$O$72,,AtlasītāPeriodaKolonna)","v":{"v":0,"d":"0.0%"}}]
[null,null,0,0,500,0,0,500,0,0,500,0,0,0,{"$f":"SUM(C46:N46)","v":{"v":1500,"d":"1,500"}},{"$f":"INDEX($C46:$O46,,AtlasītāPeriodaKolonna)/INDEX($C$72:$O$72,,AtlasītāPeriodaKolonna)","v":{"v":0,"d":"0.0%"}}]
[null,null,0,0,250,0,0,150,0,0,150,0,0,0,{"$f":"SUM(C47:N47)","v":550},{"$f":"INDEX($C47:$O47,,AtlasītāPeriodaKolonna)/INDEX($C$72:$O$72,,AtlasītāPeriodaKolonna)","v":{"v":0,"d":"0.0%"}}]
[]
["Ievadiet vai modificējiet izdevumu vienumu šūnā pa labi, un mēneša summas šūnās no C49 līdz N51. Gada ieņēmumi tiek automātiski aprēķināti šūnās no O49 līdz O51, un procentuālais pieaugums tiek aprēķināts šūnās no P49 līdz P51. Sīkdiagramma tiek automātiski atjaunināta šūnā Q49. Nākamais norādījums ir šūnā A53.","Grāmatas un piederumi",{"$f":"SUM(C50:C51)","v":0},0,325,20,20,325,10,10,400,15,15,15,{"$f":"SUM(C49:N49)","v":{"v":1155,"d":"1,155"}},{"$f":"INDEX($C49:$O49,,AtlasītāPeriodaKolonna)/INDEX($C$72:$O$72,,AtlasītāPeriodaKolonna)","v":{"v":0,"d":"0.0%"}}]
[null,null,0,0,225,0,0,275,0,0,325,0,0,0,{"$f":"SUM(C50:N50)","v":825},{"$f":"INDEX($C50:$O50,,AtlasītāPeriodaKolonna)/INDEX($C$72:$O$72,,AtlasītāPeriodaKolonna)","v":{"v":0,"d":"0.0%"}}]
[null,null,0,0,100,20,20,50,10,10,75,15,15,15,{"$f":"SUM(C51:N51)","v":330},{"$f":"INDEX($C51:$O51,,AtlasītāPeriodaKolonna)/INDEX($C$72:$O$72,,AtlasītāPeriodaKolonna)","v":{"v":0,"d":"0.0%"}}]
[]
["Ievadiet vai modificējiet izdevumu vienumu šūnā pa labi, un mēneša summas šūnās no C53 līdz N57. Gada ieņēmumi tiek automātiski aprēķināti šūnās no O53 līdz O57, un procentuālais pieaugums tiek aprēķināts šūnās no P53 līdz P57. Sīkdiagramma tiek automātiski atjaunināta šūnā Q53. Nākamais norādījums ir šūnā A59.","Transports",{"$f":"SUM(C54:C57)","v":224},174,174,219,174,174,274,219,174,174,224,269,{"$f":"SUM(C53:N53)","v":{"v":2473,"d":"2,473"}},{"$f":"INDEX($C53:$O53,,AtlasītāPeriodaKolonna)/INDEX($C$72:$O$72,,AtlasītāPeriodaKolonna)","v":{"v":0.21212121212121213,"d":"21.2%"}}]
[null,null,30,30,30,75,30,30,30,75,30,30,30,75,{"$f":"SUM(C54:N54)","v":495},{"$f":"INDEX($C54:$O54,,AtlasītāPeriodaKolonna)/INDEX($C$72:$O$72,,AtlasītāPeriodaKolonna)","v":{"v":0.028409090909090908,"d":"2.8%"}}]
[null,null,129,129,129,129,129,129,129,129,129,129,129,129,{"$f":"SUM(C55:N55)","v":{"v":1548,"d":"1,548"}},{"$f":"INDEX($C55:$O55,,AtlasītāPeriodaKolonna)/INDEX($C$72:$O$72,,AtlasītāPeriodaKolonna)","v":{"v":0.12215909090909091,"d":"12.2%"}}]
[null,null,15,15,15,15,15,15,15,15,15,15,15,15,{"$f":"SUM(C56:N56)","v":180},{"$f":"INDEX($C56:$O56,,AtlasītāPeriodaKolonna)/INDEX($C$72:$O$72,,AtlasītāPeriodaKolonna)","v":{"v":0.014204545454545454,"d":"1.4%"}}]
[null,null,50,0,0,0,0,0,100,0,0,0,50,50,{"$f":"SUM(C57:N57)","v":250},{"$f":"INDEX($C57:$O57,,AtlasītāPeriodaKolonna)/INDEX($C$72:$O$72,,AtlasītāPeriodaKolonna)","v":{"v":0.04734848484848485,"d":"4.7%"}}]
[]
["Ievadiet vai modificējiet izdevumu vienumu šūnā pa labi, un mēneša summas šūnās no C59 līdz N65. Gada ieņēmumi tiek automātiski aprēķināti šūnās no O59 līdz O65, un procentuālais pieaugums tiek aprēķināts šūnās no P59 līdz P65. Sīkdiagramma tiek automātiski atjaunināta šūnā Q59. Nākamais norādījums ir šūnā A67.","Personīgie darījumi",{"$f":"SUM(C60:C65)","v":69},69,169,369,419,444,419,419,394,394,419,469,{"$f":"SUM(C59:N59)","v":{"v":4053,"d":"4,053"}},{"$f":"INDEX($C59:$O59,,AtlasītāPeriodaKolonna)/INDEX($C$72:$O$72,,AtlasītāPeriodaKolonna)","v":{"v":0.06534090909090909,"d":"6.5%"}}]
[null,null,0,0,0,50,100,100,100,100,75,75,100,100,800,{"$f":"INDEX($C60:$O60,,AtlasītāPeriodaKolonna)/INDEX($C$72:$O$72,,AtlasītāPeriodaKolonna)","v":{"v":0,"d":"0.0%"}}]
[null,null,69,69,69,69,69,69,69,69,69,69,69,69,828,{"$f":"INDEX($C61:$O61,,AtlasītāPeriodaKolonna)/INDEX($C$72:$O$72,,AtlasītāPeriodaKolonna)","v":{"v":0.06534090909090909,"d":"6.5%"}}]
[null,null,0,0,0,0,0,25,0,0,0,0,0,50,75,{"$f":"INDEX($C62:$O62,,AtlasītāPeriodaKolonna)/INDEX($C$72:$O$72,,AtlasītāPeriodaKolonna)","v":{"v":0,"d":"0.0%"}}]
[null,null,0,0,100,100,100,100,100,100,100,100,100,100,{"v":1000,"d":"1,000"},{"$f":"INDEX($C63:$O63,,AtlasītāPeriodaKolonna)/INDEX($C$72:$O$72,,AtlasītāPeriodaKolonna)","v":{"v":0,"d":"0.0%"}}]
[null,null,0,0,0,50,50,50,50,50,50,50,50,50,450,{"$f":"INDEX($C64:$O64,,AtlasītāPeriodaKolonna)/INDEX($C$72:$O$72,,AtlasītāPeriodaKolonna)","v":{"v":0,"d":"0.0%"}}]
[null,null,0,0,0,100,100,100,100,100,100,100,100,100,900,{"$f":"INDEX($C65:$O65,,AtlasītāPeriodaKolonna)/INDEX($C$72:$O$72,,AtlasītāPeriodaKolonna)","v":{"v":0,"d":"0.0%"}}]
[]
["Ievadiet vai modificējiet izdevumu vienumu šūnā pa labi, un mēneša summas šūnās no C67 līdz N70. Gada ieņēmumi tiek automātiski aprēķināti šūnās no O67 līdz O70, un procentuālais pieaugums tiek aprēķināts šūnās no P67 līdz P70. Sīkdiagramma tiek automātiski atjaunināta šūnā Q67. Nākamais norādījums ir šūnā A72.","Citi izdevumi",{"$f":"SUM(C68:C70)","v":198},{"$f":"SUM(D68:D70)","v":198},250,253,243,238,233,258,263,268,268,268,{"$f":"SUM(C67:N67)","v":{"v":2938,"d":"2,938"}},{"$f":"INDEX($C67:$O67,,AtlasītāPeriodaKolonna)/INDEX($C$72:$O$72,,AtlasītāPeriodaKolonna)","v":{"v":0.1875,"d":"18.8%"}}]
[null,null,123,123,123,123,123,123,123,123,123,123,123,123,{"$f":"SUM(C68:N68)","v":{"v":1476,"d":"1,476"}},{"$f":"INDEX($C68:$O68,,AtlasītāPeriodaKolonna)/INDEX($C$72:$O$72,,AtlasītāPeriodaKolonna)","v":{"v":0.11647727272727272,"d":"11.6%"}}]
[null,null,0,0,52,55,45,40,35,60,65,70,70,70,{"$f":"SUM(C69:N69)","v":562},{"$f":"INDEX($C69:$O69,,AtlasītāPeriodaKolonna)/INDEX($C$72:$O$72,,AtlasītāPeriodaKolonna)","v":{"v":0,"d":"0.0%"}}]
[null,null,75,75,75,75,75,75,75,75,75,75,75,75,{"$f":"SUM(C70:N70)","v":900},{"$f":"INDEX($C70:$O70,,AtlasītāPeriodaKolonna)/INDEX($C$72:$O$72,,AtlasītāPeriodaKolonna)","v":{"v":0.07102272727272728,"d":"7.1%"}}]
[]
["Izdevumi kopā etiķete ir šūnā pa labi. Kopējie izdevumi par katru mēnesi tiek automātiski aprēķināti šūnās no C72 līdz N72, ikgadējās izmaksas tiek aprēķinātas šūnā O72, un procentuālais pieaugums tiek aprēķināts šūnā P72. Sīkdiagramma tiek automātiski atjaunināta šūnā Q72.","IZDEVUMI KOPĀ",{"$f":"SUM(C40,C45,C49,C53,C59,C67)","v":{"v":1056,"d":"1,056"}},{"v":1006,"d":"1,006"},{"v":2233,"d":"2,233"},{"v":1426,"d":"1,426"},{"v":1421,"d":"1,421"},{"v":2396,"d":"2,396"},{"v":1501,"d":"1,501"},{"v":1471,"d":"1,471"},{"v":2446,"d":"2,446"},{"v":1416,"d":"1,416"},{"v":1491,"d":"1,491"},{"v":1586,"d":"1,586"},{"$f":"SUM(C72:N72)","v":{"v":19449,"d":"19,449"}},{"$f":"INDEX($C72:$O72,,AtlasītāPeriodaKolonna)/INDEX($C$72:$O$72,,AtlasītāPeriodaKolonna)","v":{"v":1,"d":"100.0%"}}]

{"sheet":"diagrammas_aprēķini","index":2,"n_rows":23,"n_cols":16,"rows_kept":23,"hidden":true}
["***Šai lapa ir jāpaliek PASLĒPTAI***"]
[]
[{"$nulls":3},{"$f":"IFERROR(LOWER(TEXT(VALUE(AtlasītaisPeriods&\" 1\"),\"mmmm\")),\"gads\")","v":"january"}]
[]
[{"$nulls":3},"Dinamiskās diagrammas virsraksti"]
[{"$nulls":3},{"$f":"D3&\" ieņēmumi:\"","v":"january ieņēmumi:"},null,{"$f":"TEXT(INDEX('Mēneša studiju budžets'!$C$37:$O$37,,AtlasītāPeriodaKolonna),\"# ##\\ [$EUR]\")","v":"12 25 EUR"}]
[{"$nulls":3},{"$f":"D3&\" izdevumi:\"","v":"january izdevumi:"},null,{"$f":"TEXT(INDEX('Mēneša studiju budžets'!$C$72:$O$72,,AtlasītāPeriodaKolonna),\"# ##\\ [$EUR]\")","v":"10 56 EUR"}]
[{"$nulls":3},{"$f":"D3&\" naudas plūsma:\"","v":"january naudas plūsma:"},{"$f":"INDEX('Mēneša studiju budžets'!C28:O28,RitjoslasVērtība)","v":169},{"$f":"TEXT(E8,\"# ##\\ [$EUR]\")","v":"1 69 EUR"}]
[]
[]
[]
[{"$nulls":3},{"$f":"LOWER('Mēneša studiju budžets'!C27)","v":"jan "},{"$f":"LOWER('Mēneša studiju budžets'!D27)","v":"feb "},{"$f":"LOWER('Mēneša studiju budžets'!E27)","v":"mar "},{"$f":"LOWER('Mēneša studiju budžets'!F27)","v":"apr "},{"$f":"LOWER('Mēneša studiju budžets'!G27)","v":"may "},{"$f":"LOWER('Mēneša studiju budžets'!H27)","v":"jun "},{"$f":"LOWER('Mēneša studiju budžets'!I27)","v":"jul "},{"$f":"LOWER('Mēneša studiju budžets'!J27)","v":"aug "},{"$f":"LOWER('Mēneša studiju budžets'!K27)","v":"sep "},{"$f":"LOWER('Mēneša studiju budžets'!L27)","v":"oct "},{"$f":"LOWER('Mēneša studiju budžets'!M27)","v":"nov "},{"$f":"LOWER('Mēneša studiju budžets'!N27)","v":"dec "},{"$f":"LOWER('Mēneša studiju budžets'!O27)","v":"gads  "}]
[null,null,"Ritjoslas vērtība: ",1]
[null,null,"Naudas plūsmas diagramma: ",{"$f":"IF(AtlasītaisPeriods='Mēneša studiju budžets'!C$31,IF('Mēneša studiju budžets'!$C$28:$O$28>=0,'Mēneša studiju budžets'!$C$28:$O$28,NA()),NA())","v":69},{"$f":"IF(AtlasītaisPeriods='Mēneša studiju budžets'!D$31,IF('Mēneša studiju budžets'!$C$28:$O$28>=0,'Mēneša studiju budžets'!$C$28:$O$28,NA()),NA())","v":{"$error":"#N/A"}},{"$f":"IF(AtlasītaisPeriods='Mēneša studiju budžets'!E$31,IF('Mēneša studiju budžets'!$C$28:$O$28>=0,'Mēneša studiju budžets'!$C$28:$O$28,NA()),NA())","v":{"$error":"#N/A"}},{"$f":"IF(AtlasītaisPeriods='Mēneša studiju budžets'!F$31,IF('Mēneša studiju budžets'!$C$28:$O$28>=0,'Mēneša studiju budžets'!$C$28:$O$28,NA()),NA())","v":{"$error":"#N/A"}},{"$f":"IF(AtlasītaisPeriods='Mēneša studiju budžets'!G$31,IF('Mēneša studiju budžets'!$C$28:$O$28>=0,'Mēneša studiju budžets'!$C$28:$O$28,NA()),NA())","v":{"$error":"#N/A"}},{"$f":"IF(AtlasītaisPeriods='Mēneša studiju budžets'!H$31,IF('Mēneša studiju budžets'!$C$28:$O$28>=0,'Mēneša studiju budžets'!$C$28:$O$28,NA()),NA())","v":{"$error":"#N/A"}},{"$f":"IF(AtlasītaisPeriods='Mēneša studiju budžets'!I$31,IF('Mēneša studiju budžets'!$C$28:$O$28>=0,'Mēneša studiju budžets'!$C$28:$O$28,NA()),NA())","v":{"$error":"#N/A"}},{"$f":"IF(AtlasītaisPeriods='Mēneša studiju budžets'!J$31,IF('Mēneša studiju budžets'!$C$28:$O$28>=0,'Mēneša studiju budžets'!$C$28:$O$28,NA()),NA())","v":{"$error":"#N/A"}},{"$f":"IF(AtlasītaisPeriods='Mēneša studiju budžets'!K$31,IF('Mēneša studiju budžets'!$C$28:$O$28>=0,'Mēneša studiju budžets'!$C$28:$O$28,NA()),NA())","v":{"$error":"#N/A"}},{"$f":"IF(AtlasītaisPeriods='Mēneša studiju budžets'!L$31,IF('Mēneša studiju budžets'!$C$28:$O$28>=0,'Mēneša studiju budžets'!$C$28:$O$28,NA()),NA())","v":{"$error":"#N/A"}},{"$f":"IF(AtlasītaisPeriods='Mēneša studiju budžets'!M$31,IF('Mēneša studiju budžets'!$C$28:$O$28>=0,'Mēneša studiju budžets'!$C$28:$O$28,NA()),NA())","v":{"$error":"#N/A"}},{"$f":"IF(AtlasītaisPeriods='Mēneša studiju budžets'!N$31,IF('Mēneša studiju budžets'!$C$28:$O$28>=0,'Mēneša studiju budžets'!$C$28:$O$28,NA()),NA())","v":{"$error":"#N/A"}},{"$f":"IF(AtlasītaisPeriods='Mēneša studiju budžets'!O$31,IF('Mēneša studiju budžets'!$C$28:$O$28>=0,'Mēneša studiju budžets'!$C$28:$O$28,NA()),NA())","v":{"$error":"#N/A"}}]
[null,null,"Kumulatīvi: ",{"$f":"IF(AtlasītaisPeriods='Mēneša studiju budžets'!C$31,IF('Mēneša studiju budžets'!$C$28:$O$28<0,'Mēneša studiju budžets'!$C$28:$O$28,NA()),NA())","v":{"$error":"#N/A"}},{"$f":"IF(AtlasītaisPeriods='Mēneša studiju budžets'!D$31,IF('Mēneša studiju budžets'!$C$28:$O$28<0,'Mēneša studiju budžets'!$C$28:$O$28,NA()),NA())","v":{"$error":"#N/A"}},{"$f":"IF(AtlasītaisPeriods='Mēneša studiju budžets'!E$31,IF('Mēneša studiju budžets'!$C$28:$O$28<0,'Mēneša studiju budžets'!$C$28:$O$28,NA()),NA())","v":{"$error":"#N/A"}},{"$f":"IF(AtlasītaisPeriods='Mēneša studiju budžets'!F$31,IF('Mēneša studiju budžets'!$C$28:$O$28<0,'Mēneša studiju budžets'!$C$28:$O$28,NA()),NA())","v":{"$error":"#N/A"}},{"$f":"IF(AtlasītaisPeriods='Mēneša studiju budžets'!G$31,IF('Mēneša studiju budžets'!$C$28:$O$28<0,'Mēneša studiju budžets'!$C$28:$O$28,NA()),NA())","v":{"$error":"#N/A"}},{"$f":"IF(AtlasītaisPeriods='Mēneša studiju budžets'!H$31,IF('Mēneša studiju budžets'!$C$28:$O$28<0,'Mēneša studiju budžets'!$C$28:$O$28,NA()),NA())","v":{"$error":"#N/A"}},{"$f":"IF(AtlasītaisPeriods='Mēneša studiju budžets'!I$31,IF('Mēneša studiju budžets'!$C$28:$O$28<0,'Mēneša studiju budžets'!$C$28:$O$28,NA()),NA())","v":{"$error":"#N/A"}},{"$f":"IF(AtlasītaisPeriods='Mēneša studiju budžets'!J$31,IF('Mēneša studiju budžets'!$C$28:$O$28<0,'Mēneša studiju budžets'!$C$28:$O$28,NA()),NA())","v":{"$error":"#N/A"}},{"$f":"IF(AtlasītaisPeriods='Mēneša studiju budžets'!K$31,IF('Mēneša studiju budžets'!$C$28:$O$28<0,'Mēneša studiju budžets'!$C$28:$O$28,NA()),NA())","v":{"$error":"#N/A"}},{"$f":"IF(AtlasītaisPeriods='Mēneša studiju budžets'!L$31,IF('Mēneša studiju budžets'!$C$28:$O$28<0,'Mēneša studiju budžets'!$C$28:$O$28,NA()),NA())","v":{"$error":"#N/A"}},{"$f":"IF(AtlasītaisPeriods='Mēneša studiju budžets'!M$31,IF('Mēneša studiju budžets'!$C$28:$O$28<0,'Mēneša studiju budžets'!$C$28:$O$28,NA()),NA())","v":{"$error":"#N/A"}},{"$f":"IF(AtlasītaisPeriods='Mēneša studiju budžets'!N$31,IF('Mēneša studiju budžets'!$C$28:$O$28<0,'Mēneša studiju budžets'!$C$28:$O$28,NA()),NA())","v":{"$error":"#N/A"}},{"$f":"IF(AtlasītaisPeriods='Mēneša studiju budžets'!O$31,IF('Mēneša studiju budžets'!$C$28:$O$28<0,'Mēneša studiju budžets'!$C$28:$O$28,NA()),NA())","v":{"$error":"#N/A"}}]
[]
[]
[null,null,"IEŅĒMUMU DIAGRAMMAS DATI"]
[null,null,"Jums izmaksātā finansiālā palīdzība (granti, stipendijas, aizdevumi)",{"$f":"'Mēneša studiju budžets'!P32","v":{"v":0,"d":"0.0%"}}]
[null,null,"Darba samaksa pēc nodokļiem",{"$f":"'Mēneša studiju budžets'!P33","v":{"v":0.3673469387755102,"d":"36.7%"}}]
[null,null,"Ģimenes sniegtā palīdzība",{"$f":"'Mēneša studiju budžets'!P34","v":{"v":0.16326530612244897,"d":"16.3%"}}]
[null,null,"Izņemtie iekrājumi",{"$f":"'Mēneša studiju budžets'!P35","v":{"v":0.40816326530612246,"d":"40.8%"}}]
[null,null,"Cits (bērnu pabalsts, sociālais pabalsts, dāvinājumi u.c.)",{"$f":"'Mēneša studiju budžets'!P36","v":{"v":0.061224489795918366,"d":"6.1%"}}]